Cogmind - Beta 14 @@@ ROGUE MODE // 2025.03.14 @ 20:18:02 Player: NeoBioHazard Result: Destroyed by EX-DEC with AWS/EX-DEC Performance ------------- Evolutions (0) 0 Regions Visited (3) 600 Robots Destroyed (19) 95 Value Destroyed (269) 269 Prototype IDs (25) 500 Alien Tech Used (0) 0 Bonus (300) 300 TOTAL SCORE: 1764 Bonus ------- Aligned with FarCom 300 Cogmind --------- Core Integrity 0/250 Matter 235/300 Energy 100/100 System Corruption 9% Temperature Cool (0) Movement Treading (160) Location -10/Exiles Parts ------- > --- POWER (1) -------- (None) > --- PROPULSION (2) --- Light Treads Light Treads > --- UTILITY (2) ------ Medium Storage Unit Seismic Detector > --- WEAPON (2) ------- Light Assault Rifle > --- INVENTORY (10) --- Ion Engine Light Ion Engine Aluminum Leg Medium Battery (150) EM Pulse Gun Small Laser Small Laser AWS/Thermal Light Assault Rifle Peak State ------------ > --- POWER ------------ Ion Engine > --- PROPULSION ------- Light Treads Light Treads > --- UTILITY ---------- Medium Storage Unit Seismic Detector > --- WEAPON ----------- EM Pulse Gun Small Laser > --- INVENTORY -------- Ion Engine Light Ion Engine Aluminum Leg Medium Battery Small Laser AWS/Thermal Light Assault Rifle Grenade Launcher Mining Laser [Rating: 9] Favorites ----------- Power Ion Engine Engine Ion Engine Propulsion Light Treads Treads Light Treads Utility Seismic Detector Device Seismic Detector Storage Medium Storage Unit Weapon Small Laser Energy Gun Small Laser Ballistic Gun Light Assault Rifle Launcher Grenade Launcher Build | -11 -10 -10 -10 ------- Run | Yrd Mat Min Exi Slots Evolved . | . . . . Power . | . . . . Propulsion . | . . . . Utility . | . . . . Weapon . | . . . . Parts Attached 13 | 7 3 . 3 Power 1 | 1 . . . Engine 1 | 1 . . . Core . | . . . . Reactor . | . . . . Propulsion 2 | 2 . . . Treads 2 | 2 . . . Leg . | . . . . Wheel . | . . . . Hover . | . . . . Flight . | . . . . Utility 3 | 2 1 . . Device 1 | 1 . . . Storage 2 | 1 1 . . Processor . | . . . . Hackware . | . . . . Protection . | . . . . Artifact . | . . . . Weapon 7 | 2 2 . 3 Energy Gun 3 | 2 1 . . Energy Cannon . | . . . . Ballistic Gun 2 | . . . 2 Ballistic Cannon . | . . . . Launcher 2 | . 1 . 1 Special Weapon . | . . . . Impact Weapon . | . . . . Slashing Weapon . | . . . . Piercing Weapon . | . . . . Special Melee Weapon . | . . . . Unidentified Prototypes . | . . . . Parts Lost 2 | . . . 2 Power 1 | . . . 1 Propulsion . | . . . . Utility . | . . . . Weapon 1 | . . . 1 Highest Loss Streak 2 | . . . 2 To Critical Strikes . | . . . . Average Slot Usage (%) 99 | . 100 100 99 Engine 13 | . 14 14 13 Treads 28 | . 28 28 28 Device 14 | . 14 14 14 Storage 14 | . 14 14 14 Energy Gun 24 | . 18 28 26 Launcher 2 | . 9 . . Peak Build Rating 9 | 7 7 7 9 Average Rating 7 | 5 7 7 8 On Entrance 5 | . 7 7 7 Naked Turns . | . . . . Heaviest Build 20 | 14 20 19 19 Greatest Support 40 | 40 40 40 40 Greatest Overweight (x) . | . . . . Average Overweight (x) . | . . . . Largest Inventory Capacity 10 | 8 10 10 10 Average Capacity 9 | 7 8 10 10 Most Carried 10 | 3 8 9 10 Average Carried 7 | 1 6 8 9 Final Capacity 10 | 8 10 10 10 Final Carried 10 | 3 8 9 10 Class Distribution -------------------- 100% | Mutant Dominant Class ---------------- Mutant | -10/Materials Mutant | -10/Mines Mutant | -10/Exiles Resources | -11 -10 -10 -10 ----------- Run | Yrd Mat Min Exi Matter Collected 326 | 270 30 26 . Remotely . | . . . . Salvage Created 498 | 180 141 105 72 Parts 36 | 15 12 6 3 Haulers Intercepted . | . . . . Recyclers Shooed 1 | 1 . . . Parts Field Recycled . | . . . . Retrieved Matter . | . . . . Parts Self-Destructed . | . . . . Prevented . | . . . . Kills | -11 -10 -10 -10 ------- Run | Yrd Mat Min Exi Combat Hostiles Destroyed 15 | . 6 6 3 Guns 9 | . 3 6 . AOE 6 | . 3 . 3 Classes Destroyed 6 | 2 2 . 2 Tunneler 4 | 4 . . . Recycler 1 | 1 . . . Swarmer 9 | . 3 6 . Grunt 3 | . 3 . . Zionite 2 | . . . 2 Assembled 3 | . . . 3 Best Kill Streak 5 | 5 5 3 5 Combat Bots Only 5 | . 5 3 3 Max Kills in Single Turn 3 | 1 3 1 1 Gunslinging . | . . . . Exploded 3 | . 3 . 1 Melee . | . . . . Uniques/NPCs Destroyed . | . . . . Combat | -11 -10 -10 -10 -------- Run | Yrd Mat Min Exi Hostile Shots Fired 68 | . 16 16 36 Missed 17 | . 5 4 8 Damage Taken 643 | . 100 99 444 Core 250 | . 29 10 211 Absorbed by Shields . | . . . . Core Remaining (%) 100 | 100 . . . Volleys Fired 30 | 9 4 8 9 Largest 2 | 2 2 2 2 Hottest 80 | 80 80 80 50 Shots Fired 60 | 18 7 16 19 Gun 55 | 18 5 16 16 Cannon . | . . . . Launcher 5 | . 2 . 3 Special . | . . . . Kinetic 15 | . . . 15 Thermal 21 | 9 4 8 . Explosive 5 | . 2 . 3 Electromagnetic 19 | 9 1 8 1 Robot Hit Streak 7 | 5 4 6 7 Robot Miss Streak 3 | 1 2 1 3 Penetration Max . | . . . . Secondary Targets 1 | . . 1 . Max Gunslinging Chain 1 | . . 1 . Shots Hit Robots 37 | 12 4 10 11 Core Hits 29 | 5 9 6 9 Critical Kills . | . . . . Critical Parts Destroyed . | . . . . Critical Strikes . | . . . . Melee Attacks . | . . . . Impact . | . . . . Slashing . | . . . . Piercing . | . . . . Sneak Attacks . | . . . . Combat Hostiles . | . . . . Follow-up Attacks . | . . . . Damage Inflicted 890 | 164 307 113 306 Guns 410 | 164 59 113 74 Cannons . | . . . . Explosions 480 | . 248 . 232 Melee . | . . . . Ramming . | . . . . Kinetic 74 | . . . 74 Thermal 171 | 82 44 45 . Explosive 480 | . 248 . 232 Electromagnetic 165 | 82 15 68 . Impact . | . . . . Slashing . | . . . . Piercing . | . . . . Highest Corruption 9 | . 1 1 9 Average Corruption 1 | . 1 1 1 Corruption Purged . | . . . . Corruption Blocked . | . . . . Effects 6 | . 1 2 3 Message Errors 1 | . . 1 . Matter Fused 1 | . 1 . . Data Loss (minor) 1 | . . . 1 Data Loss (major) 1 | . . 1 . Misfires 2 | . . . 2 Overload Shots . | . . . . Overflow Damage 3 | . 3 . . Projectiles . | . . . . Explosions 3 | . 3 . . Melee . | . . . . Knockbacks . | . . . . Impact . | . . . . Kinetic . | . . . . Secondary . | . . . . Self-Inflicted Damage . | . . . . Shots . | . . . . Rammed . | . . . . Targets Rammed . | . . . . Kicked . | . . . . Crushed . | . . . . Highest Temperature 162 | 162 30 72 20 Average Temperature 52 | 82 17 38 11 Received Heat Transfer 44 | . 24 . 20 Siege Activations . | . . . . Robots Corrupted . | . . . . Combat Hostiles . | . . . . Parts Fried . | . . . . Impact Corruptions . | . . . . Robots Melted . | . . . . Combat Hostiles . | . . . . Parts Melted . | . . . . Heat Transferred 375 | 175 100 100 . Parts Sabotaged . | . . . . Parts Stolen . | . . . . Parts Stripped . | . . . . Power Chain Reactions . | . . . . Alert | -11 -10 -10 -10 ------- Run | Yrd Mat Min Exi Peak Influence 233 | 25 202 233 . Initial 78 | . 16 78 . Average 126 | 9 136 194 . Maximum Alert Level 1 | . 1 1 . Low Security (%) 76 | 100 87 44 . Level 1 23 | . 12 55 . Level 2 . | . . . . Level 3 . | . . . . Level 4 . | . . . . Level 5 . | . . . . High Security . | . . . . Max Security . | . . . . Squads Dispatched 2 | . 2 . . Investigation 1 | . 1 . . Extermination . | . . . . Reinforcement 1 | . 1 . . Assault . | . . . . Garrison . | . . . . Intercept . | . . . . Searches Triggered . | . . . . Construction Impeded . | . . . . Haulers Reinforced . | . . . . Active Scanning Responses . | . . . . Cargo Convoy Interrupts . | . . . . Stealth | -11 -10 -10 -10 --------- Run | Yrd Mat Min Exi Distress Signals . | . . . . Communications Jammed . | . . . . Distress Signals . | . . . . Times Spotted 24 | . 6 5 13 Peak Tracking Total 14 | . 5 3 14 Tactical Retreats . | . . . . Traps | -11 -10 -10 -10 ------- Run | Yrd Mat Min Exi Traps Triggered 1 | . 1 . . Indirectly . | . . . . Trap Hack Attempts . | . . . . Triggered . | . . . . Disarmed . | . . . . Reprogrammed . | . . . . Reused . | . . . . Traps Extracted . | . . . . Installed . | . . . . Triggered . | . . . . Machines | -11 -10 -10 -10 ---------- Run | Yrd Mat Min Exi Machines Disabled 2 | . . 1 1 Max in Single Turn 1 | . . 1 1 Machines Repaired . | . . . . Machines Dismantled . | . . . . Machines Sabotaged . | . . . . Overloaded Fab Kills . | . . . . Hacking | -11 -10 -10 -10 --------- Run | Yrd Mat Min Exi Machines Accessed 7 | . 2 . 5 Terminals 2 | . 2 . . Fabricators . | . . . . Repair Stations . | . . . . Recycling Units . | . . . . Scanalyzers . | . . . . Garrison Access . | . . . . Total Hacks 35 | . 7 . 28 Successful 32 | . 4 . 28 Failed 3 | . 3 . . Catastrophic 2 | . 2 . . Database Lockouts . | . . . . Manual 4 | . 3 . 1 Terminals 7 | . 7 . . Fabricators . | . . . . Repair Stations . | . . . . Recycling Units . | . . . . Scanalyzers . | . . . . Garrison Access . | . . . . Terminal Hacks 32 | . 4 . 28 Record 28 | . 1 . 27 Robot Analysis 2 | . 2 . . Prototype ID Bank 1 | . 1 . . Derelict Proto ID Bank 1 | . . . 1 Fabricator Hacks . | . . . . Repair Station Hacks . | . . . . Recycling Unit Hacks . | . . . . Scanalyzer . | . . . . Garrison Access Hacks . | . . . . Unauthorized Hacks . | . . . . Terminals . | . . . . Fabricators . | . . . . Repair Stations . | . . . . Recycling Units . | . . . . Scanalyzers . | . . . . Garrison Access . | . . . . Data Cores Recovered . | . . . . Used . | . . . . Hacking Detections 1 | . 1 . . Full Trace Events 1 | . 1 . . Feedback Events . | . . . . Feedback Blocked . | . . . . Robot Schematics Acquired . | . . . . Robots Built . | . . . . Authchips . | . . . . Time . | . . . . Total Robot Build Rating . | . . . . Part Schematics Acquired . | . . . . Parts Built . | . . . . Authchips . | . . . . Time . | . . . . Total Part Build Rating . | . . . . Parts Repaired . | . . . . Time . | . . . . Parts Recycled . | . . . . Recycled Matter . | . . . . Retrieved Matter . | . . . . Retrieved Components . | . . . . Parts Scanalyzed . | . . . . Part Schematics Acquired . | . . . . Parts Damaged . | . . . . Bothacking | -11 -10 -10 -10 ------------ Run | Yrd Mat Min Exi Used RIF Installer . | . . . . Robots Hacked . | . . . . Non-combat . | . . . . Combat . | . . . . Robot Hacks Applied . | . . . . Relay Couplers Released . | . . . . Fabnet Peak Effective % . | . . . . Robots Rewired . | . . . . Allies Hacked . | . . . . Hacks Repelled . | . . . . Allies | -11 -10 -10 -10 -------- Run | Yrd Mat Min Exi Total Allies . | . . . . Largest Group . | . . . . Highest-Rated Group . | . . . . Highest-Rated Ally . | . . . . Total Orders . | . . . . Ally Attacks . | . . . . Total Damage . | . . . . Kills . | . . . . Allies Corrupted . | . . . . Allies Melted . | . . . . Intel | -11 -10 -10 -10 ------- Run | Yrd Mat Min Exi Robot Analysis Total 2 | . 2 . . Derelict Logs Recovered . | . . . . Drone Launches . | . . . . Drone Recoveries . | . . . . Exploration | -11 -10 -10 -10 ------------- Run | Yrd Mat Min Exi Turns Passed 1038 | 128 262 185 463 Spaces Moved 579 | 58 150 101 270 Core 4 | 4 . . . Treads 575 | 54 150 101 270 Legs . | . . . . Wheels . | . . . . Hover . | . . . . Flight . | . . . . Fastest Speed 50 | 50 160 160 160 Average Speed 159 | 152 160 160 160 Slowest Speed 160 | 160 160 160 160 Overloaded Moves . | . . . . Propulsion Burnouts . | . . . . Robots Hopped . | . . . . Cave-ins Triggered . | . . . . Exploration Rate (%) 30 | 3 27 23 67 Regions Visited 3 Branch Regions 2 Pre-discovered Areas 1 | . . . 1 Known Exits Taken . | . . . . Unknown Exits Taken 3 | 1 1 1 . Scrap Searched . | . . . . Spaces Dug . | . . . . Terrain Destroyed 23 | . 12 . 11 Melee . | . . . . Projectile . | . . . . AOE 23 | . 12 . 11 Terrain Rammed . | . . . . Walls Destroyed . | . . . . Machines Disabled . | . . . . Actions | -11 -10 -10 -10 --------- Run | Yrd Mat Min Exi Total 637 | 77 165 109 286 Wait 1 | . 1 . . Move 576 | 57 149 100 270 Hop . | . . . . Pick Up 13 | 4 6 1 2 Fast Attach 6 | 6 . . . Attach 1 | 1 . . . Detach . | . . . . Swap 6 | . 3 . 3 Drop 4 | . 2 . 2 Fire 30 | 9 4 8 9 Melee . | . . . . Ram . | . . . . Kick . | . . . . Crush . | . . . . Escape Stasis . | . . . . Rewire . | . . . . Trap . | . . . . Miscellaneous . | . . . . Route ------- -11/Scrapyard -10/Materials -10/Mines -10/Exiles History --------- Turn | Location | Event 3 | -11/Scrapyard | Discovered new exit (range 15) 129 | -11/Scrapyard | Entered Materials 302 | -10/Materials | Discovered new exit (range 8) 331 | -10/Materials | Build established: Mutant 391 | -10/Materials | Entered Mines 568 | -10/Mines | Deemed a non-threat by the Exiles lab entrance 570 | -10/Mines | Discovered new exit (range 5) 576 | -10/Mines | Entered Exiles 615 | -10/Exiles | Met 8R-AWN 642 | -10/Exiles | Met EX-HEX 688 | -10/Exiles | Met EX-BIN 717 | -10/Exiles | Aligned with FarCom system 719 | -10/Exiles | Given EX-Vault access code 783 | -10/Exiles | Opened EX-Vault 798 | -10/Exiles | Found AWS/Thermal 837 | -10/Exiles | Warned to stay clear of 0b10 Research branches 883 | -10/Exiles | Met EX-DEC 893 | -10/Exiles | Learned location of Zion (-6) 1004 | -10/Exiles | Visited The Gauntlet 1007 | -10/Exiles | Attacked by the Exiles 1035 | -10/Exiles | Core integrity fell below 50% 1037 | -10/Exiles | Core integrity fell below 20% 1039 | -10/Exiles | Destroyed by EX-DEC with AWS/EX-DEC Last Messages --------------- It was such a good haul, too, only to see JA-CK9 crushed like a forgotten microchip... 01007_ System corrupted: FCS attempts to trigger EM Pulse Gun. 01007_ System corrupted: EM Pulse Gun misfires. 01007_ EXILES: Hostile robot within lab perimeter. Defensive protocols time, folks! 01007_ Machine disabled. 01015_ DK-RAY destroyed. 01018_ W1-DM0 destroyed. 01027_ Ion Engine destroyed. 01028_ Machine disabled. 01029_ as-26337 destroyed. 01031_ The unstable cave ceiling collapses. 01032_ as-13740 destroyed. 01035_ as-13096 destroyed. 01036_ EX-BIN: "I just want to science!" 01036_ Grenade Launcher destroyed. 01036_ System corrupted by crushing effect (+5). 01038_ System corrupted: FCS attempts to trigger Lgt. Assault Rifle. 01038_ System corrupted: Lgt. Assault Rifle misfires. Map ----- +----------------------------------------------------+ | ???????????????#" " ? "" | | ???????????????#"""" ""#??????"" " " | | ???????????????#"" ""###???????##""" | | ???????????????#" """"##????????????#" | | ???????????????#""" """#??????????????? | | ???????????????## ""##??????????????? | | ????????????????#"" """##???????????????? | | ????????????????##""" ##????????????????? | | ?????????????????##"""" ##?????????????????? | | ??????????????????### #??????????????????? | | ????????????????????##### ##??????????????????? | | ????????????????????????## #???????????????????? | | ?????????????????????????# #???????????????????? | | ?????????????????????????# #???????????????????? | | ?????????????????????????# #???????????????????? | | ?????????????????????????# #???????????????????? | | ?????????????????????????# c #???????????????????? | | ?????????????????????????# #???????????????????? | | ?????????????????????????# a ###?#???????????????? | | ?????????????????????????# # # #???????????????? | | ????????????????" ??????# #???????????????? | | ??????????????###"""######ac ###?????????????? | | ?????????????"""" """"""% c """#????????????? | | ????????????"""" =%* = "#"???????????? | | ????????? z aa " ??????????? | | ????????? @ " ??????????? | | ????????? " ??????????? | | ?????????? "" #"???????????? | | ?????????? """"" " " " """""#????????????? | | ??????????????###"""########"""######????????????? | | ???????????????"" ???????? ""????????????????? | | ???????????????""??????????? """????????????????? | | ????????????????????????????"""""????????????????? | | ???????????????????????????? """?????????????????? | | ?????????????????????????????????????????????????? | | ?????????????????????????????????????????????????? | | ?????????????????????????????????????????????????? | | ?????????????????????????????????????????????????? | | ?????????????????????????????????????????????????? | | ?????????????????????????????????????????????????? | | | | | | | | | | | | | | | | | | | | | +----------------------------------------------------+ Best States ------------- Heat Dissipation 25 Energy Generation 10 Energy Capacity 250 Matter Stores 300 Matter Capacity 300 Sight Range 16 Terrain Scan Density 10 Evasion (%) 40 Recoil Reduction 2 Item Schematics ----------------- None Robot Schematics ------------------ None Fabricated ------------ Nothing Alien Tech Used ----------------- None Achievements -------------- None Challenges ------------ None Game ------ Seed FocalLinkedInterpreter Manual? 0 Play Time 00:11:06 Cumulative 123.6 hours Start 2025.03.14 @ 20:09:33 End 2025.03.14 @ 20:18:02 Sessions 1 Manual Loads 0 Difficulty Rogue Special Mode None Game No. 249 Rogue 181 Adventurer 15 Explorer 53 Win Type - Total 3 Types 3/0/0/0/0/0/0/0/0 Lore% 36 Gallery% 59 Achievement% 47 Wizard Run 0 Options --------- Layout 0 ASCII 0 Keyboard 0 Movement Numpad Keybinds 0 Fullscreen 1 Font 18/SmallcapsGlow Map View 76x50 Zoom Use 0% Tactical HUD 1 Map Filters NONE Filters NONE Steam 1 RUN: 8c4e2e45-f2ac-4ecc-96b3-4c532416835f